[Event "Early-Titled-Tuesday-Blitz-February-20-2024"]
[Site "Chess.com"]
[Date "2024.02.20"]
[Round "2"]
[White "Nechitaylo_Nikita"]
[Black "AttackSparrow"]
[Result "1/2-1/2"]
[WhiteElo "2342"]
[BlackElo "2628"]
[TimeControl "180+1"]
[EndTime "8:16:28 PST"]
[Termination "Game drawn by repetition"]

1. d4 {[%clk 0:03:00.9]} 1... d5 {[%clk 0:02:59.9]} 2. c4 {[%clk 0:03:01.6]}
2... e6 {[%clk 0:02:59.4]} 3. Nc3 {[%clk 0:03:01.8]} 3... Nf6 {[%clk 0:03:00.1]}
4. cxd5 {[%clk 0:03:02.1]} 4... exd5 {[%clk 0:03:01]} 5. Bg5 {[%clk 0:03:01.6]}
5... Bb4 {[%clk 0:03:01.6]} 6. e3 {[%clk 0:03:01.3]} 6... h6 {[%clk 0:03:01.8]}
7. Bh4 {[%clk 0:03:01.2]} 7... g5 {[%clk 0:03:02.1]} 8. Bg3 {[%clk 0:03:01.7]}
8... Ne4 {[%clk 0:03:02.7]} 9. Qc2 {[%clk 0:03:01.7]} 9... h5 {[%clk 0:03:02.9]}
10. h3 {[%clk 0:03:00.5]} 10... Nxg3 {[%clk 0:02:52.8]} 11. fxg3 {[%clk
0:03:01.4]} 11... c6 {[%clk 0:02:52.3]} 12. Nf3 {[%clk 0:03:00.4]} 12... Bd6
{[%clk 0:02:32.4]} 13. O-O-O {[%clk 0:02:49.6]} 13... Bxg3 {[%clk 0:02:30.7]}
14. e4 {[%clk 0:02:47.2]} 14... Be6 {[%clk 0:02:25.9]} 15. exd5 {[%clk
0:02:46.8]} 15... cxd5 {[%clk 0:02:26.8]} 16. Bb5+ {[%clk 0:02:28.6]} 16... Nc6
{[%clk 0:02:26]} 17. Kb1 {[%clk 0:02:27.6]} 17... Rc8 {[%clk 0:02:18.3]} 18. Ne5
{[%clk 0:02:14.4]} 18... Kf8 {[%clk 0:01:59.2]} 19. Bxc6 {[%clk 0:01:52.9]}
19... bxc6 {[%clk 0:01:58.4]} 20. Rhf1 {[%clk 0:01:52.3]} 20... Kg7 {[%clk
0:01:44.4]} 21. Ne2 {[%clk 0:01:29.9]} 21... Bxe5 {[%clk 0:01:30.4]} 22. dxe5
{[%clk 0:01:30.8]} 22... c5 {[%clk 0:01:03.5]} 23. Qd2 {[%clk 0:01:24.5]} 23...
d4 {[%clk 0:00:58.3]} 24. Rf6 {[%clk 0:01:22.6]} 24... Qd5 {[%clk 0:00:54.3]}
25. Qxg5+ {[%clk 0:01:19.3]} 25... Kf8 {[%clk 0:00:54.9]} 26. Nf4 {[%clk
0:01:05.8]} 26... Qxa2+ {[%clk 0:00:46]} 27. Kc1 {[%clk 0:01:02.9]} 27... Qa1+
{[%clk 0:00:39.2]} 28. Kc2 {[%clk 0:01:01.1]} 28... Bb3+ {[%clk 0:00:26.5]} 29.
Kxb3 {[%clk 0:01:01.6]} 29... Qxd1+ {[%clk 0:00:13.1]} 30. Ka2 {[%clk 0:01:02]}
30... Qa4+ {[%clk 0:00:09.9]} 31. Kb1 {[%clk 0:01:02.3]} 31... Qd1+ {[%clk
0:00:10.4]} 32. Ka2 {[%clk 0:01:03]} 32... Qa4+ {[%clk 0:00:10.9]} 33. Kb1
{[%clk 0:01:03.6]} 33... Qd1+ {[%clk 0:00:11.6]} 34. Ka2 {[%clk 0:01:04.3]}
1/2-1/2

[Event "Early-Titled-Tuesday-Blitz-February-20-2024"]
[Site "Chess.com"]
[Date "2024.02.20"]
[Round "2"]
[White "malakismayil"]
[Black "ChessFanNM"]
[Result "1-0"]
[WhiteElo "2538"]
[BlackElo "2316"]
[TimeControl "180+1"]
[EndTime "8:16:28 PST"]
[Termination "malakismayil won on time"]

1. e4 {[%clk 0:03:00.9]} 1... e5 {[%clk 0:02:57.9]} 2. Nf3 {[%clk 0:03:00.2]}
2... Nc6 {[%clk 0:02:57.5]} 3. Bc4 {[%clk 0:03:00.5]} 3... Nf6 {[%clk
0:02:53.1]} 4. d3 {[%clk 0:02:59.1]} 4... Be7 {[%clk 0:02:53.1]} 5. O-O {[%clk
0:02:58.7]} 5... O-O {[%clk 0:02:52.5]} 6. Nc3 {[%clk 0:02:59.4]} 6... d6 {[%clk
0:02:48.5]} 7. h3 {[%clk 0:02:59.8]} 7... Na5 {[%clk 0:02:47.8]} 8. Bb3 {[%clk
0:02:58.8]} 8... Nxb3 {[%clk 0:02:43.7]} 9. axb3 {[%clk 0:02:59.7]} 9... a6
{[%clk 0:02:44.2]} 10. Bg5 {[%clk 0:02:59]} 10... h6 {[%clk 0:02:44]} 11. Be3
{[%clk 0:02:51.4]} 11... Nh7 {[%clk 0:02:38]} 12. d4 {[%clk 0:02:50.2]} 12...
Bf6 {[%clk 0:02:25.8]} 13. dxe5 {[%clk 0:02:33]} 13... dxe5 {[%clk 0:02:25.8]}
14. Nd5 {[%clk 0:02:33.1]} 14... Be6 {[%clk 0:02:20]} 15. c4 {[%clk 0:02:28.6]}
15... Ng5 {[%clk 0:02:08.7]} 16. Bxg5 {[%clk 0:02:23]} 16... Bxg5 {[%clk
0:02:06]} 17. Nxe5 {[%clk 0:02:21.1]} 17... Re8 {[%clk 0:01:58.3]} 18. f4 {[%clk
0:02:14.5]} 18... Bh4 {[%clk 0:01:43.5]} 19. Nf3 {[%clk 0:02:10]} 19... c6
{[%clk 0:01:42]} 20. Nc3 {[%clk 0:02:07.1]} 20... Qb6+ {[%clk 0:01:32.7]} 21.
Kh2 {[%clk 0:02:04.7]} 21... Rad8 {[%clk 0:01:32.9]} 22. Qc2 {[%clk 0:02:02.5]}
22... Qe3 {[%clk 0:01:24.8]} 23. Qc1 {[%clk 0:01:37.8]} 23... Bf2 {[%clk
0:01:15.4]} 24. Qxe3 {[%clk 0:01:24.9]} 24... Bxe3 {[%clk 0:01:15.2]} 25. f5
{[%clk 0:01:25.7]} 25... Bc8 {[%clk 0:01:14.8]} 26. Rad1 {[%clk 0:01:25.4]}
26... Bf4+ {[%clk 0:01:09.4]} 27. g3 {[%clk 0:01:25.3]} 27... Bc7 {[%clk
0:01:03.7]} 28. Kg2 {[%clk 0:01:25.2]} 28... Ba5 {[%clk 0:00:55.4]} 29. Rxd8
{[%clk 0:01:14.5]} 1-0

[Event "Early-Titled-Tuesday-Blitz-February-20-2024"]
[Site "Chess.com"]
[Date "2024.02.20"]
[Round "2"]
[White "Doublekk14"]
[Black "ViratKohl_i"]
[Result "0-1"]
[WhiteElo "2275"]
[BlackElo "2524"]
[TimeControl "180+1"]
[EndTime "8:16:32 PST"]
[Termination "ViratKohl_i won on time"]

1. c4 {[%clk 0:02:47.8]} 1... c6 {[%clk 0:02:57.1]} 2. e4 {[%clk 0:02:47.4]}
2... e5 {[%clk 0:02:53.9]} 3. Nc3 {[%clk 0:02:46.7]} 3... d6 {[%clk 0:02:53.1]}
4. Nf3 {[%clk 0:02:46.5]} 4... g6 {[%clk 0:02:51.5]} 5. d4 {[%clk 0:02:45.8]}
5... Bg7 {[%clk 0:02:51.5]} 6. Be3 {[%clk 0:02:45.5]} 6... Nf6 {[%clk
0:02:49.2]} 7. dxe5 {[%clk 0:02:44.6]} 7... dxe5 {[%clk 0:02:48.4]} 8. Qxd8+
{[%clk 0:02:44.6]} 8... Kxd8 {[%clk 0:02:47.7]} 9. O-O-O+ {[%clk 0:02:45.5]}
9... Nfd7 {[%clk 0:02:45.8]} 10. Ng5 {[%clk 0:02:43.5]} 10... Ke7 {[%clk
0:02:42.8]} 11. h4 {[%clk 0:02:29]} 11... Bh6 {[%clk 0:02:31.9]} 12. Kb1 {[%clk
0:02:18.5]} 12... f6 {[%clk 0:02:25.9]} 13. Nf7 {[%clk 0:02:07.2]} 13... Bxe3
{[%clk 0:02:18.9]} 14. Nxh8 {[%clk 0:02:06.7]} 14... Bxf2 {[%clk 0:02:18.2]} 15.
h5 {[%clk 0:02:04]} 15... g5 {[%clk 0:02:04.4]} 16. Be2 {[%clk 0:01:58.4]} 16...
Nf8 {[%clk 0:02:01.7]} 17. Rhf1 {[%clk 0:01:46.6]} 17... Bd4 {[%clk 0:01:59.8]}
18. c5 {[%clk 0:01:35.5]} 18... Be6 {[%clk 0:01:57.2]} 19. Na4 {[%clk
0:01:18.4]} 19... Nbd7 {[%clk 0:01:53.9]} 20. Rc1 {[%clk 0:01:14.3]} 20... Bg8
{[%clk 0:01:41]} 21. Bg4 {[%clk 0:01:07]} 21... Ne6 {[%clk 0:01:39.6]} 22. b4
{[%clk 0:00:59.4]} 22... Rf8 {[%clk 0:01:28.1]} 23. Nb2 {[%clk 0:00:55.1]} 23...
Nf4 {[%clk 0:01:20.1]} 24. g3 {[%clk 0:00:50.8]} 24... Bxb2 {[%clk 0:01:17.5]}
25. gxf4 {[%clk 0:00:29.4]} 25... Bxc1 {[%clk 0:01:15.7]} 26. Kxc1 {[%clk
0:00:26.2]} 26... exf4 {[%clk 0:01:14.4]} 27. Rd1 {[%clk 0:00:16.4]} 27... Be6
{[%clk 0:01:10.3]} 28. Bxe6 {[%clk 0:00:12.5]} 28... Kxe6 {[%clk 0:01:10.2]} 29.
Rd6+ {[%clk 0:00:13.4]} 29... Ke7 {[%clk 0:01:10.3]} 0-1

[Event "Early-Titled-Tuesday-Blitz-February-20-2024"]
[Site "Chess.com"]
[Date "2024.02.20"]
[Round "2"]
[White "SaiAgni_98"]
[Black "RobertoJBM"]
[Result "0-1"]
[WhiteElo "2569"]
[BlackElo "2835"]
[TimeControl "180+1"]
[EndTime "8:16:36 PST"]
[Termination "RobertoJBM won by resignation"]

1. e4 {[%clk 0:03:00.9]} 1... c6 {[%clk 0:02:50]} 2. Nf3 {[%clk 0:03:00.4]} 2...
d5 {[%clk 0:02:50.9]} 3. Nc3 {[%clk 0:02:58.2]} 3... dxe4 {[%clk 0:02:46]} 4.
Nxe4 {[%clk 0:02:59.1]} 4... Bg4 {[%clk 0:02:44.8]} 5. Bc4 {[%clk 0:02:53.7]}
5... e6 {[%clk 0:02:40.7]} 6. h3 {[%clk 0:02:53.5]} 6... Bxf3 {[%clk 0:02:39.6]}
7. Qxf3 {[%clk 0:02:54.4]} 7... Nd7 {[%clk 0:02:39.8]} 8. Bb3 {[%clk 0:02:45.5]}
8... Ngf6 {[%clk 0:02:38.3]} 9. Ng3 {[%clk 0:02:40.7]} 9... Nc5 {[%clk
0:02:34.9]} 10. O-O {[%clk 0:02:37.7]} 10... Be7 {[%clk 0:02:34.2]} 11. Rd1
{[%clk 0:02:31.3]} 11... O-O {[%clk 0:02:32.7]} 12. d4 {[%clk 0:02:31.5]} 12...
Nxb3 {[%clk 0:02:32.4]} 13. axb3 {[%clk 0:02:32.4]} 13... a6 {[%clk 0:02:25.8]}
14. c3 {[%clk 0:02:32.4]} 14... Rc8 {[%clk 0:02:24.4]} 15. b4 {[%clk 0:02:31.4]}
15... Nd5 {[%clk 0:02:23.2]} 16. Ne4 {[%clk 0:02:29.4]} 16... Qc7 {[%clk
0:02:19.6]} 17. g3 {[%clk 0:02:27.7]} 17... Rcd8 {[%clk 0:02:17.7]} 18. h4
{[%clk 0:02:27.5]} 18... h6 {[%clk 0:02:11.8]} 19. h5 {[%clk 0:02:27.7]} 19...
f5 {[%clk 0:02:08.6]} 20. Nc5 {[%clk 0:02:18.4]} 20... Bxc5 {[%clk 0:02:05.6]}
21. bxc5 {[%clk 0:02:19.3]} 21... e5 {[%clk 0:02:01.9]} 22. dxe5 {[%clk
0:02:16]} 22... Qxe5 {[%clk 0:02:02.8]} 23. Bf4 {[%clk 0:02:06.2]} 23... Nxf4
{[%clk 0:01:37.7]} 24. Qxf4 {[%clk 0:02:07.1]} 24... Qxc5 {[%clk 0:01:09.8]} 25.
Qc7 {[%clk 0:02:06.5]} 25... Rxd1+ {[%clk 0:00:56.8]} 26. Rxd1 {[%clk
0:02:07.4]} 26... f4 {[%clk 0:00:57.2]} 27. Rd7 {[%clk 0:02:03]} 27... Qg5
{[%clk 0:00:57]} 28. Kg2 {[%clk 0:01:35.2]} 28... fxg3 {[%clk 0:00:42.1]} 29.
fxg3 {[%clk 0:01:24.2]} 29... Re8 {[%clk 0:00:35.3]} 30. Qxb7 {[%clk 0:01:11.1]}
30... Re2+ {[%clk 0:00:30.8]} 31. Kf3 {[%clk 0:01:11]} 31... Qe3+ {[%clk
0:00:22.7]} 32. Kg4 {[%clk 0:01:10]} 32... Qe4+ {[%clk 0:00:20.2]} 33. Kh3
{[%clk 0:01:08.4]} 33... Qf5+ {[%clk 0:00:17.2]} 34. g4 {[%clk 0:01:06.7]} 34...
Qf3+ {[%clk 0:00:16.6]} 35. Kh4 {[%clk 0:01:07.3]} 0-1

[Event "Early-Titled-Tuesday-Blitz-February-20-2024"]
[Site "Chess.com"]
[Date "2024.02.20"]
[Round "2"]
[White "Colombiano07"]
[Black "stratacticos"]
[Result "1-0"]
[WhiteElo "2421"]
[BlackElo "1977"]
[TimeControl "180+1"]
[EndTime "8:16:38 PST"]
[Termination "Colombiano07 won on time"]

1. e4 {[%clk 0:03:00.9]} 1... c5 {[%clk 0:02:59.2]} 2. Nc3 {[%clk 0:03:00.1]}
2... Nc6 {[%clk 0:02:58.4]} 3. Bb5 {[%clk 0:03:00]} 3... Na5 {[%clk 0:02:57.1]}
4. f4 {[%clk 0:02:46.7]} 4... a6 {[%clk 0:02:56.5]} 5. Be2 {[%clk 0:02:47.1]}
5... b5 {[%clk 0:02:55.1]} 6. Nf3 {[%clk 0:02:46.1]} 6... b4 {[%clk 0:02:54]} 7.
Nd5 {[%clk 0:02:45.2]} 7... e6 {[%clk 0:02:53.4]} 8. Ne3 {[%clk 0:02:44.9]} 8...
Qc7 {[%clk 0:02:44.1]} 9. O-O {[%clk 0:02:42.9]} 9... Qxf4 {[%clk 0:02:34.7]}
10. d4 {[%clk 0:02:41.8]} 10... Qc7 {[%clk 0:02:29.6]} 11. a3 {[%clk 0:02:35.5]}
11... bxa3 {[%clk 0:02:13.5]} 12. bxa3 {[%clk 0:02:36.4]} 12... cxd4 {[%clk
0:02:11.3]} 13. Qxd4 {[%clk 0:02:31.5]} 13... Nf6 {[%clk 0:02:07.7]} 14. e5
{[%clk 0:02:30.4]} 14... Bc5 {[%clk 0:02:06.1]} 15. Qh4 {[%clk 0:02:19.3]} 15...
Nd5 {[%clk 0:02:02.6]} 16. Qg5 {[%clk 0:02:15.3]} 16... O-O {[%clk 0:01:45]} 17.
Nh4 {[%clk 0:01:44.6]} 17... h6 {[%clk 0:01:34.9]} 18. Qg3 {[%clk 0:01:41.5]}
18... Nxe3 {[%clk 0:01:29.5]} 19. Bxe3 {[%clk 0:01:39.8]} 19... Bxe3+ {[%clk
0:01:29]} 20. Qxe3 {[%clk 0:01:40.7]} 20... Qa7 {[%clk 0:01:28.5]} 21. Qxa7
{[%clk 0:01:35.9]} 21... Rxa7 {[%clk 0:01:28.2]} 22. Rf4 {[%clk 0:01:36.8]}
22... Rc7 {[%clk 0:01:20.1]} 23. Raf1 {[%clk 0:01:33.3]} 23... Nc6 {[%clk
0:01:08.9]} 24. Ng6 {[%clk 0:01:29.7]} 24... fxg6 {[%clk 0:00:55.1]} 25. Rxf8+
{[%clk 0:01:27.7]} 25... Kh7 {[%clk 0:00:54.7]} 26. Re8 {[%clk 0:01:26.7]} 26...
Nxe5 {[%clk 0:00:20.1]} 27. Rff8 {[%clk 0:01:20.3]} 27... g5 {[%clk 0:00:19.4]}
28. Rxc8 {[%clk 0:01:17.1]} 28... Rb7 {[%clk 0:00:11.2]} 29. Bd3+ {[%clk
0:01:14.8]} 29... Nxd3 {[%clk 0:00:10.6]} 30. cxd3 {[%clk 0:01:15.7]} 30... Rb3
{[%clk 0:00:08.2]} 31. Rf3 {[%clk 0:01:12.1]} 31... Rxa3 {[%clk 0:00:06.7]} 32.
Rd8 {[%clk 0:01:12.7]} 32... d5 {[%clk 0:00:05.1]} 33. Rd6 {[%clk 0:01:12.9]}
1-0

[Event "Early-Titled-Tuesday-Blitz-February-20-2024"]
[Site "Chess.com"]
[Date "2024.02.20"]
[Round "2"]
[White "YurasovMat-2012"]
[Black "GrotBchess"]
[Result "1-0"]
[WhiteElo "2651"]
[BlackElo "2378"]
[TimeControl "180+1"]
[EndTime "8:16:39 PST"]
[Termination "YurasovMat-2012 won by resignation"]

1. e4 {[%clk 0:03:00.9]} 1... c5 {[%clk 0:02:59.1]} 2. Nf3 {[%clk 0:03:01.4]}
2... e6 {[%clk 0:02:59]} 3. b3 {[%clk 0:02:57.3]} 3... b6 {[%clk 0:02:57.3]} 4.
Bb2 {[%clk 0:02:57.3]} 4... Bb7 {[%clk 0:02:57.9]} 5. d3 {[%clk 0:02:57.6]} 5...
d5 {[%clk 0:02:57.5]} 6. exd5 {[%clk 0:02:57.8]} 6... exd5 {[%clk 0:02:58.4]} 7.
d4 {[%clk 0:02:58.7]} 7... Nf6 {[%clk 0:02:57.6]} 8. Bb5+ {[%clk 0:02:57.3]}
8... Bc6 {[%clk 0:02:56.9]} 9. Qe2+ {[%clk 0:02:54.3]} 9... Be7 {[%clk
0:02:55.5]} 10. Ne5 {[%clk 0:02:54.3]} 10... Bxb5 {[%clk 0:02:52.6]} 11. Qxb5+
{[%clk 0:02:55.2]} 11... Nbd7 {[%clk 0:02:52.6]} 12. Nc6 {[%clk 0:02:54.5]}
12... Qc7 {[%clk 0:02:46.3]} 13. Nxe7 {[%clk 0:02:47.4]} 13... Kxe7 {[%clk
0:02:45.2]} 14. O-O {[%clk 0:02:48]} 14... Rhe8 {[%clk 0:02:41.8]} 15. Nd2
{[%clk 0:02:44]} 15... Kf8 {[%clk 0:02:38.5]} 16. Nf3 {[%clk 0:02:44.2]} 16...
Kg8 {[%clk 0:02:37]} 17. Rfe1 {[%clk 0:02:39.2]} 17... h6 {[%clk 0:02:36.7]} 18.
Rec1 {[%clk 0:02:38.6]} 18... Qf4 {[%clk 0:02:29.6]} 19. Re1 {[%clk 0:02:37]}
19... Rad8 {[%clk 0:02:19.5]} 20. Rad1 {[%clk 0:02:35.7]} 20... Ne4 {[%clk
0:02:09.7]} 21. dxc5 {[%clk 0:02:25.5]} 21... Ndxc5 {[%clk 0:02:08.9]} 22. Rxd5
{[%clk 0:02:24.1]} 22... Rxd5 {[%clk 0:01:44.3]} 23. Qxe8+ {[%clk 0:02:22.6]}
23... Kh7 {[%clk 0:01:44.3]} 24. c4 {[%clk 0:02:17.6]} 24... Rf5 {[%clk
0:01:13.1]} 25. Bd4 {[%clk 0:02:00.3]} 25... Ne6 {[%clk 0:00:54.1]} 26. Be3
{[%clk 0:01:48.3]} 26... Qg4 {[%clk 0:00:51.1]} 27. h3 {[%clk 0:01:45.7]} 27...
Qh5 {[%clk 0:00:29.4]} 28. Nd4 {[%clk 0:01:41.6]} 28... Re5 {[%clk 0:00:15.8]}
29. Nf3 {[%clk 0:01:25.4]} 29... Rf5 {[%clk 0:00:15.3]} 30. Nh2 {[%clk
0:01:18.7]} 30... N4g5 {[%clk 0:00:12.1]} 31. Qc6 {[%clk 0:01:13.6]} 31... Rf6
{[%clk 0:00:09.9]} 32. Qd5 {[%clk 0:01:11.3]} 32... Rg6 {[%clk 0:00:09]} 33. Kh1
{[%clk 0:01:09.3]} 33... Nxh3 {[%clk 0:00:05.3]} 34. Qxh5 {[%clk 0:01:06]} 1-0

[Event "Early-Titled-Tuesday-Blitz-February-20-2024"]
[Site "Chess.com"]
[Date "2024.02.20"]
[Round "2"]
[White "joshdaruca"]
[Black "GM_Huschenbeth"]
[Result "1-0"]
[WhiteElo "2766"]
[BlackElo "2477"]
[TimeControl "180+1"]
[EndTime "8:16:42 PST"]
[Termination "joshdaruca won by resignation"]

1. b3 {[%clk 0:02:53.5]} 1... e5 {[%clk 0:02:59.3]} 2. Bb2 {[%clk 0:02:44.5]}
2... Nc6 {[%clk 0:02:58.7]} 3. Nf3 {[%clk 0:02:44.1]} 3... e4 {[%clk 0:02:57]}
4. Nd4 {[%clk 0:02:44.4]} 4... Nf6 {[%clk 0:02:57.4]} 5. e3 {[%clk 0:02:44.3]}
5... Nxd4 {[%clk 0:02:55.6]} 6. Bxd4 {[%clk 0:02:44]} 6... d5 {[%clk 0:02:54.9]}
7. c4 {[%clk 0:02:44.1]} 7... c5 {[%clk 0:02:49.4]} 8. Bxf6 {[%clk 0:02:44]}
8... Qxf6 {[%clk 0:02:50.2]} 9. Nc3 {[%clk 0:02:44.3]} 9... dxc4 {[%clk
0:02:42.5]} 10. Bxc4 {[%clk 0:02:21.6]} 10... Qg6 {[%clk 0:02:34.5]} 11. Bd5
{[%clk 0:02:21.4]} 11... Qxg2 {[%clk 0:02:26.9]} 12. Bxe4 {[%clk 0:02:20.3]}
12... Qg5 {[%clk 0:02:24.2]} 13. Qf3 {[%clk 0:02:07.7]} 13... Rb8 {[%clk
0:02:04.7]} 14. O-O-O {[%clk 0:01:46.6]} 14... Bd6 {[%clk 0:02:04.5]} 15. Rhg1
{[%clk 0:01:40.7]} 15... Qe5 {[%clk 0:02:04.1]} 16. h4 {[%clk 0:01:30.5]} 16...
h6 {[%clk 0:01:58.6]} 17. Qg2 {[%clk 0:01:17.6]} 17... O-O {[%clk 0:01:52.2]}
18. f4 {[%clk 0:01:16.3]} 18... Qf6 {[%clk 0:01:52.1]} 19. Kc2 {[%clk
0:01:13.7]} 19... Be6 {[%clk 0:01:13.8]} 20. f5 {[%clk 0:01:13.4]} 20... Bxf5
{[%clk 0:01:10.6]} 21. Rdf1 {[%clk 0:01:13]} 21... Bxe4+ {[%clk 0:00:46.5]} 22.
Nxe4 {[%clk 0:01:13.9]} 22... Qg6 {[%clk 0:00:32.9]} 23. Qxg6 {[%clk 0:01:12.8]}
23... fxg6 {[%clk 0:00:33.8]} 24. Nxd6 {[%clk 0:01:13.1]} 24... Kh7 {[%clk
0:00:05.1]} 25. Rxf8 {[%clk 0:01:08.1]} 25... Rxf8 {[%clk 0:00:06]} 26. Nxb7
{[%clk 0:01:08.4]} 26... Rf5 {[%clk 0:00:05.2]} 27. Rg4 {[%clk 0:01:06.1]} 27...
g5 {[%clk 0:00:04.8]} 28. hxg5 {[%clk 0:01:05.8]} 28... h5 {[%clk 0:00:05.1]}
29. Rc4 {[%clk 0:01:04.5]} 29... Kg6 {[%clk 0:00:03.6]} 30. Nxc5 {[%clk
0:01:04.7]} 30... h4 {[%clk 0:00:02.3]} 31. Ne6 {[%clk 0:01:00.9]} 31... Kh5
{[%clk 0:00:01.2]} 32. Nxg7+ {[%clk 0:01:00.6]} 32... Kxg5 {[%clk 0:00:01.2]}
33. Nxf5 {[%clk 0:01:01.5]} 33... Kxf5 {[%clk 0:00:02.1]} 34. Rxh4 {[%clk
0:01:01.4]} 1-0

[Event "Early-Titled-Tuesday-Blitz-February-20-2024"]
[Site "Chess.com"]
[Date "2024.02.20"]
[Round "2"]
[White "KnightmareJoker"]
[Black "HeroWilczek"]
[Result "0-1"]
[WhiteElo "2161"]
[BlackElo "2478"]
[TimeControl "180+1"]
[EndTime "8:16:42 PST"]
[Termination "HeroWilczek won by resignation"]

1. e4 {[%clk 0:03:00.9]} 1... d5 {[%clk 0:02:58.7]} 2. exd5 {[%clk 0:03:01]}
2... Nf6 {[%clk 0:02:57.9]} 3. d4 {[%clk 0:03:01.4]} 3... Bg4 {[%clk 0:02:57.7]}
4. Be2 {[%clk 0:02:54.7]} 4... Bxe2 {[%clk 0:02:57.3]} 5. Nxe2 {[%clk
0:02:53.8]} 5... Qxd5 {[%clk 0:02:57.6]} 6. O-O {[%clk 0:02:53.2]} 6... e6
{[%clk 0:02:58.2]} 7. b3 {[%clk 0:02:50.1]} 7... Be7 {[%clk 0:02:56.1]} 8. c4
{[%clk 0:02:50.5]} 8... Qd7 {[%clk 0:02:55.1]} 9. Nbc3 {[%clk 0:02:50]} 9... O-O
{[%clk 0:02:55.7]} 10. Bb2 {[%clk 0:02:43.8]} 10... Rd8 {[%clk 0:02:56.2]} 11.
Qd3 {[%clk 0:02:38.3]} 11... c5 {[%clk 0:02:56]} 12. d5 {[%clk 0:02:04.7]} 12...
exd5 {[%clk 0:02:47.2]} 13. cxd5 {[%clk 0:02:04.1]} 13... Nxd5 {[%clk
0:02:44.6]} 14. Nxd5 {[%clk 0:01:52.9]} 14... Qxd5 {[%clk 0:02:45.5]} 15. Qg3
{[%clk 0:01:53.6]} 15... Qg5 {[%clk 0:02:34]} 16. Qf3 {[%clk 0:01:43.9]} 16...
Nc6 {[%clk 0:02:31.8]} 17. Ng3 {[%clk 0:01:38.1]} 17... Rd7 {[%clk 0:02:17.5]}
18. Ne4 {[%clk 0:01:27.2]} 18... Qg6 {[%clk 0:02:13.6]} 19. Rfe1 {[%clk
0:01:24.6]} 19... Rad8 {[%clk 0:02:12.3]} 20. Qh3 {[%clk 0:01:17.2]} 20... Rd3
{[%clk 0:01:55.7]} 21. f3 {[%clk 0:01:11.4]} 21... Bf8 {[%clk 0:01:36.4]} 22.
Rac1 {[%clk 0:01:08.6]} 22... b6 {[%clk 0:01:35.7]} 23. Qh4 {[%clk 0:00:46.9]}
23... h6 {[%clk 0:01:28.1]} 24. Kh1 {[%clk 0:00:46.1]} 24... Rd2 {[%clk
0:01:21]} 25. Nxd2 {[%clk 0:00:37.2]} 25... Rxd2 {[%clk 0:01:21.9]} 26. Rg1
{[%clk 0:00:30.7]} 26... Rxb2 {[%clk 0:01:20.8]} 27. Qa4 {[%clk 0:00:30.7]}
27... Nd4 {[%clk 0:01:12.3]} 28. Qxa7 {[%clk 0:00:28.1]} 28... Ne2 {[%clk
0:01:11.1]} 29. Rb1 {[%clk 0:00:27.9]} 29... Rc2 {[%clk 0:01:04.7]} 30. g3
{[%clk 0:00:21.6]} 30... Nxg1 {[%clk 0:01:03.8]} 31. Rxg1 {[%clk 0:00:20.5]}
31... Qc6 {[%clk 0:01:01.2]} 32. Rf1 {[%clk 0:00:19.7]} 32... Qb5 {[%clk
0:00:55]} 33. Kg1 {[%clk 0:00:18.3]} 33... Qe2 {[%clk 0:00:54.4]} 0-1

[Event "Early-Titled-Tuesday-Blitz-February-20-2024"]
[Site "Chess.com"]
[Date "2024.02.20"]
[Round "2"]
[White "topce"]
[Black "LikeWater"]
[Result "0-1"]
[WhiteElo "2396"]
[BlackElo "2730"]
[TimeControl "180+1"]
[EndTime "8:16:43 PST"]
[Termination "LikeWater won on time"]

1. c4 {[%clk 0:02:50.4]} 1... g6 {[%clk 0:03:00.9]} 2. Nc3 {[%clk 0:02:50.2]}
2... Bg7 {[%clk 0:03:01.4]} 3. d4 {[%clk 0:02:50.9]} 3... d6 {[%clk 0:03:02.3]}
4. e4 {[%clk 0:02:51.4]} 4... e5 {[%clk 0:03:03.2]} 5. d5 {[%clk 0:02:43.7]}
5... a5 {[%clk 0:03:01.2]} 6. h4 {[%clk 0:02:34.2]} 6... h5 {[%clk 0:02:58.3]}
7. Bg5 {[%clk 0:02:29.4]} 7... f6 {[%clk 0:02:55.3]} 8. Be3 {[%clk 0:02:28.9]}
8... Nh6 {[%clk 0:02:37.6]} 9. f3 {[%clk 0:02:28.2]} 9... Nf7 {[%clk 0:02:36.3]}
10. c5 {[%clk 0:02:22]} 10... f5 {[%clk 0:02:31.1]} 11. cxd6 {[%clk 0:02:08.5]}
11... Nxd6 {[%clk 0:02:27.4]} 12. Nb5 {[%clk 0:01:56]} 12... O-O {[%clk
0:02:20.5]} 13. Rc1 {[%clk 0:01:52.1]} 13... Na6 {[%clk 0:02:18.6]} 14. Bg5
{[%clk 0:01:34.9]} 14... Bf6 {[%clk 0:02:14.9]} 15. Bxf6 {[%clk 0:01:17.6]}
15... Qxf6 {[%clk 0:02:15.8]} 16. Nxc7 {[%clk 0:01:15.6]} 16... Nxc7 {[%clk
0:02:14.8]} 17. Rxc7 {[%clk 0:01:16.4]} 17... fxe4 {[%clk 0:02:15.2]} 18. Qd2
{[%clk 0:00:54.6]} 18... Nf5 {[%clk 0:02:12.5]} 19. fxe4 {[%clk 0:00:18.9]}
19... Ng3 {[%clk 0:02:12.8]} 20. Nf3 {[%clk 0:00:19]} 20... Nxh1 {[%clk
0:02:10.3]} 21. Qh6 {[%clk 0:00:17.7]} 21... Rf7 {[%clk 0:02:11]} 22. Rxf7
{[%clk 0:00:11.1]} 22... Qxf7 {[%clk 0:02:11.9]} 23. Nxe5 {[%clk 0:00:08]} 23...
Qg7 {[%clk 0:02:12.5]} 24. Qg5 {[%clk 0:00:07.7]} 24... Bg4 {[%clk 0:02:11.6]}
25. Bc4 {[%clk 0:00:07.3]} 25... Re8 {[%clk 0:02:05.9]} 26. d6+ {[%clk
0:00:08.2]} 26... Kh7 {[%clk 0:02:06.5]} 27. d7 {[%clk 0:00:06.7]} 27... Rxe5
{[%clk 0:01:54.1]} 28. d8=Q {[%clk 0:00:06.8]} 28... Rxg5 {[%clk 0:01:43.5]} 29.
hxg5 {[%clk 0:00:07.7]} 29... Ng3 {[%clk 0:01:39.2]} 30. Bd5 {[%clk 0:00:04.6]}
30... Nxe4 {[%clk 0:01:23.7]} 31. Qxa5 {[%clk 0:00:05]} 31... Nxg5 {[%clk
0:01:21.2]} 32. Qb6 {[%clk 0:00:04]} 32... Qe5+ {[%clk 0:01:18.6]} 33. Kf2
{[%clk 0:00:01.5]} 33... Qxd5 {[%clk 0:01:18.7]} 34. b4 {[%clk 0:00:01.4]} 34...
Ne4+ {[%clk 0:01:18.5]} 35. Ke3 {[%clk 0:00:01.4]} 35... Nd6 {[%clk 0:01:18.1]}
36. Qc7+ {[%clk 0:00:01.1]} 36... Kh6 {[%clk 0:01:18.1]} 37. Qd8 {[%clk
0:00:01.7]} 37... Nf5+ {[%clk 0:01:18.2]} 38. Kf2 {[%clk 0:00:02.1]} 38... Qxd8
{[%clk 0:01:19.1]} 39. g3 {[%clk 0:00:01.9]} 39... Qd2+ {[%clk 0:01:18.9]} 0-1